[Event "2026 Biel Blitz Open"]
[Site "Biel, CH"]
[Date "2026.07.19"]
[Round "4"]
[White "Kolly, Jacques"]
[Black "Kwiatkowski, Maciej"]
[Result "1-0"]
[Board "16"]
[TimeControl "180+2"]
[WhiteFideId "1302183"]
[BlackFideId "1360175"]
[WhiteElo "2203"]
[BlackElo "1967"]
[WhiteTitle "FM"]
[WhiteClock "0:00:39"]
[BlackClock "0:00:09"]
[Variant "Standard"]
[EndDate "2026.07.19"]
[EndTime "12:52:15"]

1. d4 {[%clk 0:03:04]}  Nf6 {[%clk 0:03:03]} 2. c4 {[%clk 0:03:05]}  e6 {[%clk 0:03:03]} 3. Nc3 {[%clk 0:03:06]}  d5 {[%clk 0:03:04]}
4. Bg5 {[%clk 0:03:03]}  c6 {[%clk 0:03:05]} 5. e3 {[%clk 0:03:04]}  Nbd7 {[%clk 0:03:05]} 6. Nf3 {[%clk 0:03:05]}  Qa5 {[%clk 0:03:06]}
7. Bxf6 {[%clk 0:02:57]}  Nxf6 {[%clk 0:03:06]} 8. Qc2 {[%clk 0:02:52]}  Ne4 {[%clk 0:02:58]} 9. Nd2 {[%clk 0:02:53]}  Nxd2 {[%clk 0:02:45]}
10. Qxd2 {[%clk 0:02:53]}  Be7 {[%clk 0:02:36]} 11. Be2 {[%clk 0:02:46]}  O-O {[%clk 0:02:35]} 12. O-O {[%clk 0:02:47]}  dxc4 {[%clk 0:02:18]}
13. Bxc4 {[%clk 0:02:47]}  e5 {[%clk 0:02:12]} 14. d5 {[%clk 0:02:15]}  Rd8 {[%clk 0:01:48]} 15. Rfd1 {[%clk 0:02:16]}  Bb4 {[%clk 0:01:17]}
16. e4 {[%clk 0:01:59]}  cxd5 {[%clk 0:01:05]} 17. exd5 {[%clk 0:01:43]}  Bf5 {[%clk 0:01:00]} 18. Rac1 {[%clk 0:01:33]}  Rac8 {[%clk 0:00:58]}
19. Bb3 {[%clk 0:01:34]}  Bg4 {[%clk 0:00:50]} 20. f3 {[%clk 0:01:30]}  Bf5 {[%clk 0:00:47]} 21. g4 {[%clk 0:01:21]}  Bg6 {[%clk 0:00:48]}
22. Kg2 {[%clk 0:01:18]}  e4 {[%clk 0:00:46]} 23. f4 {[%clk 0:01:14]}  h6 {[%clk 0:00:41]} 24. f5 {[%clk 0:01:10]}  Bh7 {[%clk 0:00:42]}
25. Qd4 {[%clk 0:01:08]}  Re8 {[%clk 0:00:39]} 26. Nxe4 {[%clk 0:01:02]}  Rxc1 {[%clk 0:00:29]} 27. Rxc1 {[%clk 0:01:03]}  Qb5 {[%clk 0:00:20]}
28. Qc4 {[%clk 0:00:48]}  Qxc4 {[%clk 0:00:18]} 29. Rxc4 {[%clk 0:00:49]}  a5 {[%clk 0:00:17]} 30. Kf3 {[%clk 0:00:49]}  h5 {[%clk 0:00:18]}
31. h3 {[%clk 0:00:50]}  hxg4+ {[%clk 0:00:18]} 32. hxg4 {[%clk 0:00:52]}  b5 {[%clk 0:00:15]} 33. Rc6 {[%clk 0:00:44]}  a4 {[%clk 0:00:13]}
34. Bc2 {[%clk 0:00:44]}  Be7 {[%clk 0:00:10]} 35. Bd3 {[%clk 0:00:41]}  b4 {[%clk 0:00:10]} 36. d6 {[%clk 0:00:39]}  Bd8 {[%clk 0:00:11]}
37. Bb5 {[%clk 0:00:36]}  a3 {[%clk 0:00:10]} 38. bxa3 {[%clk 0:00:37]}  bxa3 {[%clk 0:00:11]} 39. Rc8 {[%clk 0:00:38]}  Rf8 {[%clk 0:00:11]}
40. d7 {[%clk 0:00:38]}  g6 {[%clk 0:00:10]} 41. f6 {[%clk 0:00:31]}  g5 {[%clk 0:00:10]} 42. Nxg5 {[%clk 0:00:31]}  Bb1 {[%clk 0:00:11]}
43. Bc4 {[%clk 0:00:32]}  Bxf6 {[%clk 0:00:06]} 44. Bxf7+ {[%clk 0:00:29]}  Kg7 {[%clk 0:00:05]} 45. Ne6+ {[%clk 0:00:29]}  Kxf7 {[%clk 0:00:06]}
46. Rxf8+ {[%clk 0:00:27]}  Kxe6 {[%clk 0:00:07]} 47. Rxf6+ {[%clk 0:00:27]}  Kxd7 {[%clk 0:00:06]} 48. Ra6 {[%clk 0:00:26]}  Bd3 {[%clk 0:00:05]}
49. Rxa3 {[%clk 0:00:26]}  Bb5 {[%clk 0:00:06]} 50. Kf4 {[%clk 0:00:27]}  Ke7 {[%clk 0:00:06]} 51. g5 {[%clk 0:00:29]}  Kf7 {[%clk 0:00:07]}
52. Ra5 {[%clk 0:00:30]}  Bd3 {[%clk 0:00:08]} 53. Ke5 {[%clk 0:00:31]}  Bc2 {[%clk 0:00:08]} 54. Rc5 {[%clk 0:00:32]}  Bd3 {[%clk 0:00:09]}
55. a4 {[%clk 0:00:33]}  Kg6 {[%clk 0:00:09]} 56. Kf4 {[%clk 0:00:34]}  Be2 {[%clk 0:00:09]} 57. a5 {[%clk 0:00:36]}  Bf1 {[%clk 0:00:09]}
58. a6 {[%clk 0:00:37]}  Bxa6 {[%clk 0:00:09]} 59. Rc6+ {[%clk 0:00:39]} 1-0

[Event "2026 Biel Blitz Open"]
[Site "Biel, CH"]
[Date "2026.07.19"]
[Round "4"]
[White "Dietiker, Manuel"]
[Black "Gautier, Anand"]
[Result "0-1"]
[Board "17"]
[TimeControl "180+2"]
[WhiteFideId "1317377"]
[BlackFideId "26010186"]
[WhiteElo "2002"]
[BlackElo "2198"]
[BlackTitle "FM"]
[WhiteClock "0:00:18"]
[BlackClock "0:00:28"]
[Variant "Standard"]
[EndDate "2026.07.19"]
[EndTime "12:52:25"]

1. e4 {[%clk 0:03:02]}  c5 {[%clk 0:03:04]} 2. Nf3 {[%clk 0:03:03]}  d6 {[%clk 0:03:05]} 3. d4 {[%clk 0:03:04]}  cxd4 {[%clk 0:03:06]}
4. Nxd4 {[%clk 0:03:04]}  Nf6 {[%clk 0:03:08]} 5. Nc3 {[%clk 0:03:05]}  a6 {[%clk 0:03:09]} 6. Rg1 {[%clk 0:03:04]}  h5 {[%clk 0:03:02]}
7. h3 {[%clk 0:03:04]}  g6 {[%clk 0:02:51]} 8. g4 {[%clk 0:03:04]}  Bg7 {[%clk 0:02:49]} 9. Be3 {[%clk 0:03:01]}  Nc6 {[%clk 0:02:50]}
10. g5 {[%clk 0:02:53]}  Nd7 {[%clk 0:02:50]} 11. Nd5 {[%clk 0:02:44]}  O-O {[%clk 0:02:42]} 12. c3 {[%clk 0:02:25]}  e6 {[%clk 0:02:31]}
13. Nxc6 {[%clk 0:02:17]}  bxc6 {[%clk 0:02:31]} 14. Nf6+ {[%clk 0:02:10]}  Nxf6 {[%clk 0:02:09]} 15. gxf6 {[%clk 0:02:11]}  Qxf6 {[%clk 0:01:43]}
16. Qxd6 {[%clk 0:02:10]}  e5 {[%clk 0:01:44]} 17. Qxf6 {[%clk 0:02:09]}  Bxf6 {[%clk 0:01:45]} 18. O-O-O {[%clk 0:02:09]}  Be6 {[%clk 0:01:46]}
19. Be2 {[%clk 0:02:00]}  Kh7 {[%clk 0:01:44]} 20. Rd6 {[%clk 0:02:00]}  Rfc8 {[%clk 0:01:38]} 21. b3 {[%clk 0:01:57]}  Be7 {[%clk 0:01:38]}
22. Rd2 {[%clk 0:01:54]}  Bxh3 {[%clk 0:01:33]} 23. Rh1 {[%clk 0:01:34]}  Be6 {[%clk 0:01:33]} 24. f4 {[%clk 0:01:30]}  exf4 {[%clk 0:01:33]}
25. Bxf4 {[%clk 0:01:30]}  Rd8 {[%clk 0:01:01]} 26. Bxh5 {[%clk 0:01:25]}  Kg7 {[%clk 0:00:38]} 27. Rg2 {[%clk 0:01:15]}  Rh8 {[%clk 0:00:29]}
28. Be5+ {[%clk 0:01:12]}  Bf6 {[%clk 0:00:31]} 29. Bxf6+ {[%clk 0:01:12]}  Kxf6 {[%clk 0:00:29]} 30. Rf1+ {[%clk 0:01:13]}  Ke7 {[%clk 0:00:33]}
31. Be2 {[%clk 0:01:12]}  a5 {[%clk 0:00:32]} 32. Kb2 {[%clk 0:01:08]}  a4 {[%clk 0:00:33]} 33. b4 {[%clk 0:01:08]}  a3+ {[%clk 0:00:34]}
34. Kc2 {[%clk 0:00:45]}  Bh3 {[%clk 0:00:28]} 35. Rgf2 {[%clk 0:00:35]}  Bxf1 {[%clk 0:00:29]} 36. Rxf1 {[%clk 0:00:35]}  Rh2 {[%clk 0:00:29]}
37. Kd1 {[%clk 0:00:35]}  f6 {[%clk 0:00:23]} 38. Bc4 {[%clk 0:00:36]}  Rd8+ {[%clk 0:00:23]} 39. Kc1 {[%clk 0:00:36]}  Rdd2 {[%clk 0:00:24]}
40. Bb3 {[%clk 0:00:37]}  g5 {[%clk 0:00:22]} 41. c4 {[%clk 0:00:36]}  Rd4 {[%clk 0:00:20]} 42. Re1 {[%clk 0:00:33]}  g4 {[%clk 0:00:20]}
43. b5 {[%clk 0:00:35]}  cxb5 {[%clk 0:00:22]} 44. cxb5 {[%clk 0:00:36]}  Rb4 {[%clk 0:00:23]} 45. e5 {[%clk 0:00:36]}  f5 {[%clk 0:00:25]}
46. Rf1 {[%clk 0:00:34]}  f4 {[%clk 0:00:26]} 47. b6 {[%clk 0:00:35]}  f3 {[%clk 0:00:27]} 48. e6 {[%clk 0:00:17]}  Rxb6 {[%clk 0:00:27]}
49. Rg1 {[%clk 0:00:18]}  Rxb3 {[%clk 0:00:28]} 0-1

[Event "2026 Biel Blitz Open"]
[Site "Biel, CH"]
[Date "2026.07.19"]
[Round "4"]
[White "Schweizer, Simon"]
[Black "Vihaan Dumir"]
[Result "1/2-1/2"]
[Board "18"]
[TimeControl "180+2"]
[WhiteFideId "1325361"]
[BlackFideId "25901010"]
[WhiteElo "2182"]
[BlackElo "1965"]
[BlackTitle "CM"]
[WhiteClock "0:01:25"]
[BlackClock "0:00:25"]
[Variant "Standard"]
[EndDate "2026.07.19"]
[EndTime "12:50:43"]

1. e4 {[%clk 0:03:02]}  c5 {[%clk 0:03:04]} 2. Nf3 {[%clk 0:03:03]}  e6 {[%clk 0:03:05]} 3. d4 {[%clk 0:03:05]}  cxd4 {[%clk 0:03:06]}
4. Nxd4 {[%clk 0:03:06]}  Nf6 {[%clk 0:03:07]} 5. Nc3 {[%clk 0:03:07]}  Nc6 {[%clk 0:03:08]} 6. Bf4 {[%clk 0:03:09]}  Bb4 {[%clk 0:03:02]}
7. Ndb5 {[%clk 0:03:10]}  Nxe4 {[%clk 0:03:00]} 8. a3 {[%clk 0:02:55]}  Ba5 {[%clk 0:02:36]} 9. Nd6+ {[%clk 0:02:52]}  Nxd6 {[%clk 0:02:35]}
10. Bxd6 {[%clk 0:02:53]}  Qf6 {[%clk 0:02:29]} 11. Qd2 {[%clk 0:02:45]}  Qd4 {[%clk 0:02:15]} 12. O-O-O {[%clk 0:02:20]}  Bxc3 {[%clk 0:02:15]}
13. bxc3 {[%clk 0:02:18]}  Qxd2+ {[%clk 0:01:59]} 14. Rxd2 {[%clk 0:02:18]}  f6 {[%clk 0:01:59]} 15. f4 {[%clk 0:02:16]}  Kf7 {[%clk 0:01:56]}
16. Bc4 {[%clk 0:02:14]}  f5 {[%clk 0:01:55]} 17. a4 {[%clk 0:02:09]}  b6 {[%clk 0:01:54]} 18. Re1 {[%clk 0:02:08]}  Bb7 {[%clk 0:01:45]}
19. Kb2 {[%clk 0:02:04]}  Na5 {[%clk 0:01:41]} 20. Ba2 {[%clk 0:02:04]}  Rac8 {[%clk 0:01:38]} 21. Bb4 {[%clk 0:02:03]}  d5 {[%clk 0:01:17]}
22. Bxa5 {[%clk 0:02:03]}  bxa5 {[%clk 0:01:15]} 23. c4 {[%clk 0:02:02]}  Rhd8 {[%clk 0:01:11]} 24. cxd5 {[%clk 0:01:57]}  Bxd5 {[%clk 0:01:05]}
25. Bxd5 {[%clk 0:01:57]}  Rxd5 {[%clk 0:01:03]} 26. Rxd5 {[%clk 0:01:58]}  exd5 {[%clk 0:01:03]} 27. Re5 {[%clk 0:01:59]}  Rc4 {[%clk 0:01:01]}
28. Rxd5 {[%clk 0:01:51]}  Rxa4 {[%clk 0:00:58]} 29. g3 {[%clk 0:01:52]}  Ke6 {[%clk 0:00:50]} 30. Re5+ {[%clk 0:01:52]}  Kf6 {[%clk 0:00:51]}
31. Rc5 {[%clk 0:01:51]}  h5 {[%clk 0:00:27]} 32. Rc6+ {[%clk 0:01:51]}  Kf7 {[%clk 0:00:23]} 33. Rc7+ {[%clk 0:01:52]}  Kg6 {[%clk 0:00:24]}
34. Rxa7 {[%clk 0:01:52]}  h4 {[%clk 0:00:22]} 35. Kb3 {[%clk 0:01:48]}  Ra1 {[%clk 0:00:23]} 36. c4 {[%clk 0:01:45]}  hxg3 {[%clk 0:00:24]}
37. hxg3 {[%clk 0:01:46]}  Rg1 {[%clk 0:00:23]} 38. Rxa5 {[%clk 0:01:42]}  Rxg3+ {[%clk 0:00:24]} 39. Kb4 {[%clk 0:01:43]}  Rf3 {[%clk 0:00:21]}
40. c5 {[%clk 0:01:44]}  Rxf4+ {[%clk 0:00:21]} 41. Kc3 {[%clk 0:01:45]}  Rf1 {[%clk 0:00:22]} 42. Kc2 {[%clk 0:01:37]}  Kf7 {[%clk 0:00:18]}
43. Ra7+ {[%clk 0:01:38]}  Kf6 {[%clk 0:00:17]} 44. c6 {[%clk 0:01:38]}  Rf4 {[%clk 0:00:13]} 45. Kc3 {[%clk 0:01:36]}  Rf1 {[%clk 0:00:12]}
46. Kc2 {[%clk 0:01:37]}  Rf4 {[%clk 0:00:13]} 47. Kd3 {[%clk 0:01:37]}  Rf1 {[%clk 0:00:11]} 48. Kd2 {[%clk 0:01:25]}  Rf4 {[%clk 0:00:11]}
49. Kd3 {[%clk 0:01:17]}  Re4 {[%clk 0:00:12]} 50. c7 {[%clk 0:01:01]}  Re8 {[%clk 0:00:13]} 51. Kd4 {[%clk 0:01:06]}  Ke6 {[%clk 0:00:12]}
52. Kc5 {[%clk 0:01:05]}  Kd7 {[%clk 0:00:11]} 53. Kb6 {[%clk 0:01:05]}  Rc8 {[%clk 0:00:10]} 54. Ra5 {[%clk 0:00:58]}  Rxc7 {[%clk 0:00:11]}
55. Rxf5 {[%clk 0:00:59]}  Rc6+ {[%clk 0:00:12]} 56. Kb5 {[%clk 0:01:00]}  Rf6 {[%clk 0:00:10]} 57. Rg5 {[%clk 0:00:56]}  g6 {[%clk 0:00:12]}
58. Rg1 {[%clk 0:00:57]}  Rd6 {[%clk 0:00:10]} 59. Kc5 {[%clk 0:00:58]}  Ke7 {[%clk 0:00:09]} 60. Rg2 {[%clk 0:00:56]}  Re6 {[%clk 0:00:08]}
61. Kd5 {[%clk 0:00:57]}  Rf6 {[%clk 0:00:07]} 62. Ke5 {[%clk 0:00:58]}  Rf5+ {[%clk 0:00:08]} 63. Ke4 {[%clk 0:00:59]}  Kf6 {[%clk 0:00:09]}
64. Ra2 {[%clk 0:00:59]}  Kg5 {[%clk 0:00:10]} 65. Rg2+ {[%clk 0:01:00]}  Kf6 {[%clk 0:00:11]} 66. Ra2 {[%clk 0:01:01]}  Re5+ {[%clk 0:00:12]}
67. Kf4 {[%clk 0:01:02]}  Rd5 {[%clk 0:00:12]} 68. Ra6+ {[%clk 0:01:04]}  Kf7 {[%clk 0:00:13]} 69. Kg4 {[%clk 0:01:05]}  Rd4+ {[%clk 0:00:15]}
70. Kg5 {[%clk 0:01:06]}  Rd5+ {[%clk 0:00:16]} 71. Kg4 {[%clk 0:01:06]}  Re5 {[%clk 0:00:17]} 72. Kf4 {[%clk 0:01:07]}  Re6 {[%clk 0:00:18]}
73. Ra5 {[%clk 0:01:08]}  Kf6 {[%clk 0:00:19]} 74. Ra8 {[%clk 0:01:08]}  g5+ {[%clk 0:00:19]} 75. Kg4 {[%clk 0:01:09]}  Re4+ {[%clk 0:00:21]}
76. Kf3 {[%clk 0:01:11]}  Rf4+ {[%clk 0:00:22]} 77. Kg3 {[%clk 0:01:12]}  Re4 {[%clk 0:00:22]} 78. Rf8+ {[%clk 0:01:12]}  Kg6 {[%clk 0:00:23]}
79. Rg8+ {[%clk 0:01:13]}  Kf5 {[%clk 0:00:24]} 80. Rf8+ {[%clk 0:01:14]}  Kg6 {[%clk 0:00:23]} 81. Rg8+ {[%clk 0:01:15]}  Kf6 {[%clk 0:00:23]}
82. Rf8+ {[%clk 0:01:16]}  Kg7 {[%clk 0:00:24]} 83. Ra8 {[%clk 0:01:16]}  Re7 {[%clk 0:00:22]} 84. Kg4 {[%clk 0:01:17]}  Re5 {[%clk 0:00:22]}
85. Ra6 {[%clk 0:01:18]}  Kf7 {[%clk 0:00:21]} 86. Rb6 {[%clk 0:01:19]}  Kg7 {[%clk 0:00:21]} 87. Ra6 {[%clk 0:01:20]}  Rd5 {[%clk 0:00:22]}
88. Rb6 {[%clk 0:01:21]}  Kf7 {[%clk 0:00:22]} 89. Ra6 {[%clk 0:01:23]}  Ke7 {[%clk 0:00:23]} 90. Rb6 {[%clk 0:01:24]}  Kd7 {[%clk 0:00:24]}
91. Rg6 {[%clk 0:01:25]}  Rd4+ {[%clk 0:00:25]} 92. Kxg5 {[%clk 0:01:25]} 1/2-1/2

[Event "2026 Biel Blitz Open"]
[Site "Biel, CH"]
[Date "2026.07.19"]
[Round "4"]
[White "Haugner, Jan"]
[Black "Liu, Bei"]
[Result "0-1"]
[Board "19"]
[TimeControl "180+2"]
[WhiteFideId "24655244"]
[BlackFideId "8603596"]
[WhiteElo "1976"]
[BlackElo "2170"]
[WhiteClock "0:00:04"]
[BlackClock "0:00:37"]
[Variant "Standard"]
[EndDate "2026.07.19"]
[EndTime "12:47:24"]

1. e4 {[%clk 0:03:03]}  c5 {[%clk 0:03:03]} 2. Nc3 {[%clk 0:03:04]}  d6 {[%clk 0:03:04]} 3. g3 {[%clk 0:03:05]}  Nc6 {[%clk 0:03:04]}
4. Bg2 {[%clk 0:03:06]}  g6 {[%clk 0:03:05]} 5. d3 {[%clk 0:03:07]}  Bg7 {[%clk 0:03:06]} 6. f4 {[%clk 0:03:08]}  e6 {[%clk 0:03:05]}
7. Nf3 {[%clk 0:03:03]}  Nge7 {[%clk 0:03:05]} 8. h4 {[%clk 0:03:04]}  h5 {[%clk 0:03:01]} 9. O-O {[%clk 0:03:05]}  Rb8 {[%clk 0:03:02]}
10. a4 {[%clk 0:03:06]}  a6 {[%clk 0:03:01]} 11. Ng5 {[%clk 0:03:03]}  b5 {[%clk 0:03:00]} 12. axb5 {[%clk 0:03:03]}  axb5 {[%clk 0:03:01]}
13. f5 {[%clk 0:03:01]}  exf5 {[%clk 0:02:59]} 14. exf5 {[%clk 0:03:03]}  Bxf5 {[%clk 0:02:49]} 15. Bxc6+ {[%clk 0:03:03]}  Nxc6 {[%clk 0:02:49]}
16. Nd5 {[%clk 0:03:05]}  Ne5 {[%clk 0:02:12]} 17. Ra7 {[%clk 0:02:23]}  Bg4 {[%clk 0:01:39]} 18. Qe1 {[%clk 0:00:27]}  O-O {[%clk 0:01:39]}
19. Qf2 {[%clk 0:00:13]}  Ra8 {[%clk 0:01:09]} 20. Rxa8 {[%clk 0:00:09]}  Qxa8 {[%clk 0:01:10]} 21. Nf6+ {[%clk 0:00:11]}  Kh8 {[%clk 0:01:03]}
22. Nge4 {[%clk 0:00:05]}  Nf3+ {[%clk 0:00:45]} 23. Kg2 {[%clk 0:00:04]}  d5 {[%clk 0:00:46]} 24. Nxg4 {[%clk 0:00:04]}  dxe4 {[%clk 0:00:38]}
25. dxe4 {[%clk 0:00:04]}  hxg4 {[%clk 0:00:37]} 0-1

[Event "2026 Biel Blitz Open"]
[Site "Biel, CH"]
[Date "2026.07.19"]
[Round "4"]
[White "Fernandes Barbosa Dos Santos, Gabriel"]
[Black "Clausen, Martin"]
[Result "1-0"]
[Board "20"]
[TimeControl "180+2"]
[WhiteFideId "1354388"]
[BlackFideId "1314882"]
[WhiteElo "2167"]
[BlackElo "1956"]
[WhiteTitle "CM"]
[WhiteClock "0:00:21"]
[BlackClock "0:00:08"]
[Variant "Standard"]
[EndDate "2026.07.19"]
[EndTime "12:47:51"]

1. e4 {[%clk 0:03:02]}  d5 {[%clk 0:03:03]} 2. exd5 {[%clk 0:03:02]}  c6 {[%clk 0:03:04]} 3. dxc6 {[%clk 0:02:56]}  Nxc6 {[%clk 0:03:05]}
4. Nf3 {[%clk 0:02:44]}  e5 {[%clk 0:03:06]} 5. Bb5 {[%clk 0:02:35]}  Bd6 {[%clk 0:03:06]} 6. Nc3 {[%clk 0:02:22]}  f5 {[%clk 0:03:06]}
7. d4 {[%clk 0:02:18]}  e4 {[%clk 0:03:07]} 8. d5 {[%clk 0:02:01]}  a6 {[%clk 0:02:55]} 9. Bxc6+ {[%clk 0:01:49]}  bxc6 {[%clk 0:02:56]}
10. Nd4 {[%clk 0:01:36]}  c5 {[%clk 0:02:48]} 11. Ne6 {[%clk 0:01:30]}  Qe7 {[%clk 0:02:33]} 12. Bg5 {[%clk 0:01:25]}  Nf6 {[%clk 0:02:21]}
13. Bxf6 {[%clk 0:01:16]}  Qxf6 {[%clk 0:02:14]} 14. Qh5+ {[%clk 0:01:14]}  g6 {[%clk 0:02:12]} 15. Qh6 {[%clk 0:01:10]}  Bxe6 {[%clk 0:01:45]}
16. dxe6 {[%clk 0:01:09]}  Qxe6 {[%clk 0:01:36]} 17. O-O-O {[%clk 0:00:59]}  O-O-O {[%clk 0:01:28]} 18. Qe3 {[%clk 0:00:55]}  g5 {[%clk 0:01:12]}
19. Kb1 {[%clk 0:00:51]}  Qc4 {[%clk 0:00:41]} 20. Qxg5 {[%clk 0:00:45]}  Qe6 {[%clk 0:00:42]} 21. Qe3 {[%clk 0:00:41]}  Rhg8 {[%clk 0:00:42]}
22. g3 {[%clk 0:00:42]}  h5 {[%clk 0:00:43]} 23. h4 {[%clk 0:00:40]}  Qc4 {[%clk 0:00:42]} 24. Qh6 {[%clk 0:00:35]}  Bc7 {[%clk 0:00:21]}
25. Qc6 {[%clk 0:00:29]}  Kb8 {[%clk 0:00:18]} 26. Nd5 {[%clk 0:00:25]}  Rc8 {[%clk 0:00:17]} 27. Ne7 {[%clk 0:00:19]}  Be5 {[%clk 0:00:16]}
28. Nxc8 {[%clk 0:00:19]}  Rxc8 {[%clk 0:00:17]} 29. Qb6+ {[%clk 0:00:21]}  Ka8 {[%clk 0:00:18]} 30. Rd7 {[%clk 0:00:21]}  Bb8 {[%clk 0:00:08]} 1-0

[Event "2026 Biel Blitz Open"]
[Site "Biel, CH"]
[Date "2026.07.19"]
[Round "4"]
[White "Savitha Shri B"]
[Black "Havolli, Daut"]
[Result "1-0"]
[Board "22"]
[TimeControl "180+2"]
[WhiteFideId "35061887"]
[BlackFideId "1315200"]
[WhiteElo "2161"]
[BlackElo "1950"]
[WhiteTitle "IM"]
[WhiteClock "0:01:15"]
[BlackClock "0:03:02"]
[Variant "Standard"]
[EndDate "2026.07.19"]
[EndTime "12:55:53"]

1. e4 {[%clk 0:03:03]}  c6 {[%clk 0:03:04]} 2. d4 {[%clk 0:03:03]}  d5 {[%clk 0:03:04]} 3. Nc3 {[%clk 0:03:04]}  e6 {[%clk 0:03:02]}
4. Nf3 {[%clk 0:03:01]}  Bb4 {[%clk 0:03:03]} 5. Bd3 {[%clk 0:02:46]}  Nf6 {[%clk 0:02:57]} 6. e5 {[%clk 0:02:38]}  Nfd7 {[%clk 0:02:43]}
7. O-O {[%clk 0:02:37]}  c5 {[%clk 0:02:40]} 8. Nb5 {[%clk 0:02:35]}  cxd4 {[%clk 0:02:38]} 9. Nbxd4 {[%clk 0:02:04]}  Nc6 {[%clk 0:02:36]}
10. c3 {[%clk 0:02:03]}  Be7 {[%clk 0:02:31]} 11. Re1 {[%clk 0:02:02]}  O-O {[%clk 0:02:26]} 12. Bf4 {[%clk 0:01:51]}  Re8 {[%clk 0:02:16]}
13. b4 {[%clk 0:01:49]}  Nf8 {[%clk 0:02:12]} 14. Bg3 {[%clk 0:01:43]}  f6 {[%clk 0:02:01]} 15. b5 {[%clk 0:01:30]}  Nxd4 {[%clk 0:01:55]}
16. Nxd4 {[%clk 0:01:26]}  f5 {[%clk 0:01:49]} 17. c4 {[%clk 0:01:24]}  b6 {[%clk 0:01:27]} 18. Nc6 {[%clk 0:01:22]}  Qc7 {[%clk 0:01:28]}
19. cxd5 {[%clk 0:01:21]}  exd5 {[%clk 0:01:27]} 20. Bc2 {[%clk 0:01:21]}  Be6 {[%clk 0:01:24]} 21. Bb3 {[%clk 0:01:23]}  a6 {[%clk 0:01:15]}
22. Bxd5 {[%clk 0:01:22]}  Qd7 {[%clk 0:00:38]} 23. Nxe7+ {[%clk 0:01:20]}  Qxe7 {[%clk 0:00:39]} 24. Bxa8 {[%clk 0:01:21]}  Rxa8 {[%clk 0:00:39]}
25. bxa6 {[%clk 0:01:22]}  Rxa6 {[%clk 0:00:38]} 26. Qd6 {[%clk 0:01:23]}  Qf7 {[%clk 0:00:34]} 27. a4 {[%clk 0:01:21]}  g5 {[%clk 0:00:28]}
28. f4 {[%clk 0:01:18]}  gxf4 {[%clk 0:00:21]} 29. Bxf4 {[%clk 0:01:19]}  Ng6 {[%clk 0:00:23]} 30. Bh6 {[%clk 0:01:20]}  Ra8 {[%clk 0:00:23]}
31. Rec1 {[%clk 0:01:16]}  Re8 {[%clk 0:00:20]} 32. Rc7 {[%clk 0:01:17]}  Re7 {[%clk 0:00:18]} 33. Rac1 {[%clk 0:01:15]}  f4 {[%clk 0:00:00]} 1-0

[Event "2026 Biel Blitz Open"]
[Site "Biel, CH"]
[Date "2026.07.19"]
[Round "4"]
[White "Ragios, Konstantinos"]
[Black "Kelecevic, Nedeljko"]
[Result "0-1"]
[Board "23"]
[TimeControl "180+2"]
[WhiteFideId "4210484"]
[BlackFideId "14400537"]
[WhiteElo "1957"]
[BlackElo "2150"]
[BlackTitle "IM"]
[WhiteClock "0:00:15"]
[BlackClock "0:00:24"]
[Variant "Standard"]
[EndDate "2026.07.19"]
[EndTime "12:56:03"]

1. e4 {[%clk 0:03:03]}  e6 {[%clk 0:03:02]} 2. Nf3 {[%clk 0:03:03]}  d5 {[%clk 0:03:01]} 3. exd5 {[%clk 0:03:03]}  exd5 {[%clk 0:03:01]}
4. d4 {[%clk 0:03:04]}  Bg4 {[%clk 0:02:55]} 5. Bd3 {[%clk 0:02:50]}  Bd6 {[%clk 0:02:54]} 6. Be3 {[%clk 0:02:42]}  Nc6 {[%clk 0:02:47]}
7. c3 {[%clk 0:02:39]}  Nge7 {[%clk 0:02:43]} 8. Nbd2 {[%clk 0:02:38]}  Qd7 {[%clk 0:02:40]} 9. Qc2 {[%clk 0:02:37]}  Bf5 {[%clk 0:02:37]}
10. O-O {[%clk 0:02:21]}  O-O {[%clk 0:02:34]} 11. Bg5 {[%clk 0:02:16]}  Bxd3 {[%clk 0:02:24]} 12. Qxd3 {[%clk 0:02:16]}  Ng6 {[%clk 0:02:25]}
13. Nb3 {[%clk 0:02:07]}  Rae8 {[%clk 0:02:12]} 14. Rae1 {[%clk 0:02:07]}  h6 {[%clk 0:02:10]} 15. Bd2 {[%clk 0:02:04]}  Rxe1 {[%clk 0:02:01]}
16. Rxe1 {[%clk 0:02:04]}  Re8 {[%clk 0:02:01]} 17. Be3 {[%clk 0:01:55]}  Re6 {[%clk 0:01:54]} 18. Nc5 {[%clk 0:01:49]}  Bxc5 {[%clk 0:01:54]}
19. dxc5 {[%clk 0:01:50]}  Nce5 {[%clk 0:01:46]} 20. Nxe5 {[%clk 0:01:37]}  Nxe5 {[%clk 0:01:46]} 21. Qd4 {[%clk 0:01:26]}  c6 {[%clk 0:01:33]}
22. Kf1 {[%clk 0:01:20]}  Nc4 {[%clk 0:01:18]} 23. b3 {[%clk 0:01:20]}  Nxe3+ {[%clk 0:01:16]} 24. Rxe3 {[%clk 0:01:21]}  Rxe3 {[%clk 0:01:10]}
25. Qxe3 {[%clk 0:01:21]}  Kf8 {[%clk 0:01:01]} 26. Qf4 {[%clk 0:01:14]}  a6 {[%clk 0:00:59]} 27. Qb8+ {[%clk 0:01:03]}  Ke7 {[%clk 0:00:57]}
28. Qe5+ {[%clk 0:01:03]}  Kf8 {[%clk 0:00:59]} 29. h3 {[%clk 0:01:03]}  f6 {[%clk 0:00:57]} 30. Qf4 {[%clk 0:01:03]}  Kf7 {[%clk 0:00:56]}
31. a4 {[%clk 0:00:57]}  g5 {[%clk 0:00:51]} 32. Qf3 {[%clk 0:00:55]}  Qe7 {[%clk 0:00:49]} 33. b4 {[%clk 0:00:43]}  Qe4 {[%clk 0:00:40]}
34. Qxe4 {[%clk 0:00:38]}  dxe4 {[%clk 0:00:41]} 35. Ke2 {[%clk 0:00:39]}  f5 {[%clk 0:00:41]} 36. Ke3 {[%clk 0:00:40]}  Ke6 {[%clk 0:00:39]}
37. Kd4 {[%clk 0:00:39]}  h5 {[%clk 0:00:37]} 38. c4 {[%clk 0:00:30]}  h4 {[%clk 0:00:30]} 39. b5 {[%clk 0:00:26]}  Kf6 {[%clk 0:00:27]}
40. f3 {[%clk 0:00:20]}  exf3 {[%clk 0:00:25]} 41. gxf3 {[%clk 0:00:21]}  g4 {[%clk 0:00:21]} 42. fxg4 {[%clk 0:00:19]}  fxg4 {[%clk 0:00:22]}
43. Ke3 {[%clk 0:00:14]}  gxh3 {[%clk 0:00:22]} 44. Kf3 {[%clk 0:00:14]}  Ke5 {[%clk 0:00:23]} 45. Kf2 {[%clk 0:00:15]}  Kd4 {[%clk 0:00:24]} 0-1